fUSD/lending_fUSD_20240524
["ID","MTS","AMOUNT","RATE_DAILY","PERIOD"]
[327858479,1716559936828,-500.0,0.00031506,5]
[327858480,1716559936840,-500.0,0.00031506,5]
[327858481,1716559936850,-1547.58,0.00031506,5]
[327858482,1716559936860,-1137.75,0.00031506,5]
[327858483,1716559936870,-500.0,0.00031506,5]
[327858484,1716559936880,-553.09536064,0.00031506,5]
[327858485,1716559936890,-500.0,0.00031506,5]
[327858486,1716559936900,-514.27,0.00031506,5]
[327858487,1716559936910,-151.0,0.00031506,7]
[327858488,1716559936920,-920.69,0.00031506,5]
[327858489,1716559936930,-500.0,0.00031506,5]
[327858490,1716559936940,-500.0,0.00031506,5]
[327858491,1716559936951,-1547.58,0.00031506,5]
[327858492,1716559936960,-500.0,0.00031506,5]
[327858493,1716559936969,-1137.75,0.00031506,5]
[327858494,1716559936979,-500.0,0.00031506,5]
[327858495,1716559936989,-500.0,0.00031506,5]
[327858496,1716559936998,-514.27,0.00031506,5]
[327858497,1716559937008,-500.0,0.00031506,5]
[327858498,1716559937017,-920.75,0.00031506,5]
[327858499,1716559937028,-254.790534,0.00031506,7]
[327858500,1716559937041,-500.0,0.00031506,5]
[327858501,1716559937051,-500.0,0.00031506,5]
[327858502,1716559937060,-1547.71484252,0.00031506,5]
[327858503,1716559937071,-516.45778112,0.00031506,5]
[327858504,1716559937082,-376.22353299,0.00031506,5]
[327858505,1716559937092,-514.27,0.00031506,5]
[327858506,1716559937103,-1137.75,0.00031506,5]
[327858507,1716559937116,-500.0,0.00031506,5]
[327858508,1716559937128,-500.0,0.00031506,5]
[327858509,1716559937138,-2000.0,0.00031506,30]
[327858510,1716559937147,-500.0,0.00031506,5]
[327858511,1716559937157,-500.0,0.00031506,5]
[327858512,1716559937169,-1137.75,0.00031506,5]
[327858513,1716559937178,-507.86481785,0.00031506,5]
[327858514,1716559937189,-500.0,0.00031506,5]
[327858515,1716559937201,-500.0,0.00031506,5]
[327858516,1716559937211,-228.22740843,0.00031506,5]
[327858517,1716559937221,-500.0,0.00031506,5]
[327858518,1716559937231,-500.0,0.00031506,5]
[327858519,1716559937242,-1137.75,0.00031506,5]
[327858520,1716559937251,-500.0,0.00031506,5]
[327858521,1716559937261,-538.11661337,0.00031506,5]
[327858522,1716559937272,-514.27,0.00031506,5]
[327858523,1716559937283,-2000.0,0.00031506,30]
[327858524,1716559937294,-500.0,0.00031506,5]
[327858525,1716559937304,-500.0,0.00031506,5]
[327858526,1716559937315,-1137.75,0.00031506,5]
[327858527,1716559937326,-500.0,0.00031506,5]
[327858528,1716559937337,-500.0,0.00031506,5]
[327858529,1716559937347,-2011.49890335,0.00031506,30]
[327858530,1716559937357,-500.0,0.00031506,5]
[327858531,1716559937369,-1137.75,0.00031506,5]
[327858532,1716559937379,-500.0,0.00031506,5]
[327858533,1716559937390,-500.0,0.00031506,5]
[327858534,1716559937401,-500.0,0.00031506,5]
[327858535,1716559937411,-500.0,0.00031506,5]
[327858536,1716559937421,-514.27,0.00031506,5]
[327858537,1716559937432,-500.0,0.00031506,5]
[327858538,1716559937442,-500.0,0.00031506,5]
[327858539,1716559937453,-500.0,0.00031506,5]
[327858540,1716559937463,-500.0,0.00031506,5]
[327858541,1716559937472,-514.27,0.00031506,5]
[327858542,1716559937483,-4327.465765,0.00031506,7]
[327858543,1716559937493,-517.34663193,0.00031506,5]
[327858544,1716559937502,-1137.75,0.00031506,5]
[327858545,1716559937512,-500.0,0.00031506,5]
[327858546,1716559937522,-500.0,0.00031506,5]
[327858547,1716559937532,-500.0,0.00031506,5]
[327858548,1716559937543,-4327.465765,0.00031506,7]
[327858549,1716559937553,-514.27,0.00031506,5]
[327858550,1716559937563,-1137.75,0.00031506,5]
[327858551,1716559937573,-500.0,0.00031506,5]
[327858552,1716559937584,-500.0,0.00031506,5]
[327858553,1716559937753,-500.0,0.00031506,5]
[327858554,1716559937764,-500.0,0.00031506,5]
[327858555,1716559937773,-4327.465765,0.00031506,7]
[327858556,1716559937783,-1137.81,0.00031506,5]
[327858557,1716559937793,-500.0,0.00031506,5]
[327858558,1716559937802,-500.0,0.00031506,5]
[327858559,1716559937812,-500.0,0.00031506,5]
[327858560,1716559937821,-500.0,0.00031506,5]
[327858561,1716559937831,-514.27,0.00031506,5]
[327858562,1716559937840,-4327.465765,0.00031506,7]
[327858563,1716559937850,-500.0,0.00031506,5]
[327858564,1716559937860,-293.96,0.00031506,5]
[327858565,1716559937870,-500.0,0.00031506,5]
[327858566,1716559937880,-500.0,0.00031506,5]
[327858567,1716559937889,-517.28,0.00031506,5]
[327858568,1716559937900,-514.27,0.00031506,5]
[327858569,1716559937910,-241.74,0.00031506,5]
[327858570,1716559937920,-728.16,0.00031506,5]
[327858571,1716559937929,-514.27,0.00031506,5]
[327858572,1716559937939,-505.81424852,0.00031506,5]
[327858573,1716559937950,-728.16,0.00031506,5]
[327858574,1716559937960,-1497.66,0.00031506,5]
[327858575,1716559937969,-514.27,0.00031506,5]
[327858576,1716559937979,-1497.66,0.00031506,5]
[327858577,1716559937988,-728.16,0.00031506,5]
[327858578,1716559937998,-514.5,0.00031506,5]
[327858579,1716559938007,-1497.66,0.00031506,5]
[327858580,1716559938018,-728.16,0.00031506,5]
[327858581,1716559938032,-746.05,0.00031506,5]
[327858582,1716559938041,-500.0,0.00031506,5]
[327858583,1716559938051,-728.16,0.00031506,5]
[327858584,1716559938060,-1497.66,0.00031506,5]
[327858585,1716559938071,-746.05,0.00031506,5]
[327858586,1716559938080,-500.0,0.00031506,5]
[327858587,1716559938090,-500.0,0.00031506,5]
[327858588,1716559938099,-728.16,0.00031506,5]
[327858589,1716559938108,-500.0,0.00031506,5]
[327858590,1716559938118,-1497.66,0.00031506,5]
[327858591,1716559938128,-746.05,0.00031506,5]
[327858592,1716559938138,-500.0,0.00031506,5]
[327858593,1716559938148,-500.0,0.00031506,5]
[327858594,1716559938158,-728.16,0.00031506,5]
[327858595,1716559938168,-1497.66,0.00031506,5]
[327858596,1716559938178,-500.0,0.00031506,5]
[327858597,1716559938187,-746.05,0.00031506,5]
[327858598,1716559938201,-500.0,0.00031506,5]
[327858599,1716559938210,-500.0,0.00031506,5]
[327858600,1716559938219,-1403.13,0.00031506,5]
[327858601,1716559938228,-728.16,0.00031506,5]
[327858602,1716559938238,-593.16576028,0.00031506,5]
[327858603,1716559938248,-1497.66,0.00031506,5]
[327858604,1716559938259,-4327.465765,0.00031506,7]
[327858605,1716559938268,-500.0,0.00031506,5]
[327858606,1716559938278,-500.0,0.00031506,5]
[327858607,1716559938288,-500.0,0.00031506,5]
[327858608,1716559938298,-500.0,0.00031506,5]
[327858609,1716559938307,-1497.66,0.00031506,5]
[327858610,1716559938317,-500.0,0.00031506,5]
[327858611,1716559938326,-1403.13,0.00031506,5]
[327858612,1716559938336,-4327.465765,0.00031506,7]
[327858613,1716559938345,-728.16,0.00031506,5]
[327858614,1716559938355,-746.05,0.00031506,5]
[327858615,1716559938365,-500.0,0.00031506,5]
[327858616,1716559938374,-500.0,0.00031506,5]
[327858617,1716559938385,-1497.66,0.00031506,5]
[327858618,1716559938394,-511.356825,0.00031506,5]
[327858619,1716559938403,-746.05,0.00031506,5]
[327858620,1716559938413,-500.0,0.00031506,5]
[327858621,1716559938422,-1403.13,0.00031506,5]
[327858622,1716559938431,-4327.465765,0.00031506,7]
[327858623,1716559938440,-500.0,0.00031506,5]
[327858624,1716559938452,-728.16,0.00031506,5]
[327858625,1716559938462,-501.90766173,0.00031506,5]
[327858626,1716559938471,-500.0,0.00031506,5]
[327858627,1716559938480,-1497.66,0.00031506,5]
[327858628,1716559938490,-1403.13,0.00031506,5]
[327858629,1716559938499,-500.0,0.00031506,5]
[327858630,1716559938509,-500.0,0.00031506,5]
[327858631,1716559938518,-500.0,0.00031506,5]
[327858632,1716559938527,-728.16,0.00031506,5]
[327858633,1716559938537,-746.05,0.00031506,5]
[327858634,1716559938546,-500.0,0.00031506,5]
[327858635,1716559938556,-1403.13,0.00031506,5]
[327858636,1716559938566,-500.0,0.00031506,5]
[327858637,1716559938575,-1497.66,0.00031506,5]
[327858638,1716559938585,-500.0,0.00031506,5]
[327858639,1716559938594,-728.16,0.00031506,5]
[327858640,1716559938604,-746.05,0.00031506,5]
[327858641,1716559938614,-1403.13,0.00031506,5]
[327858642,1716559938624,-500.0,0.00031506,5]
[327858643,1716559938634,-377.48,0.00031506,5]
[327858644,1716559938644,-1497.66,0.00031506,5]
[327858645,1716559938653,-500.0,0.00031506,5]
[327858646,1716559938663,-728.16,0.00031506,5]
[327858647,1716559938672,-746.05,0.00031506,5]
[327858648,1716559938682,-500.0,0.00031506,5]
[327858649,1716559938692,-1403.13,0.00031506,5]
[327858650,1716559938702,-1497.66,0.00031506,5]
[327858651,1716559938711,-500.0,0.00031506,5]
[327858652,1716559938720,-728.16,0.00031506,5]
[327858653,1716559938730,-1403.13,0.00031506,5]
[327858654,1716559938740,-336.71,0.00031506,5]
[327858655,1716559938749,-746.05,0.00031506,5]
[327858656,1716559938759,-1497.66,0.00031506,5]
[327858657,1716559938769,-4327.465765,0.00031506,7]
[327858658,1716559938778,-728.16,0.00031506,5]
[327858659,1716559938788,-500.0,0.00031506,5]
[327858660,1716559938798,-1497.66,0.00031506,5]
[327858661,1716559938808,-746.05,0.00031506,5]
[327858662,1716559938818,-1403.13,0.00031506,5]
[327858663,1716559938828,-728.16,0.00031506,5]
[327858664,1716559938841,-1403.13,0.00031506,5]
[327858665,1716559938851,-746.05,0.00031506,5]
[327858666,1716559938861,-3723.47110887,0.00031506,7]
[327858667,1716559938873,-1147.77650553,0.00031506,7]
[327858668,1716559938882,-246.94781801,0.00031506,7]
[327858669,1716559938892,-695.66031416,0.00031506,7]
[327858670,1716559938901,-387.0,0.00031539,2]
[327858671,1716559938911,-160.03771859,0.00031561,7]
[327858672,1716559938921,-154.47161738,0.00031566,7]
[327858673,1716559938930,-209.29248335,0.00031615,7]
[327858674,1716559938940,-165.9806506,0.00031625,7]
[327858675,1716559938962,-280.75057216,0.00031682,7]
[327858676,1716559938977,-524.45,0.00031687,2]
[327858677,1716559938994,-524.45,0.00031687,2]
[327858678,1716559939013,-156.98207687,0.00031753,30]
[327858679,1716559939037,-536.630205,0.00031781,14]
[327858680,1716559939053,-157.569703,0.00031786,2]
[327858681,1716559939071,-4762.072778,0.00031786,2]
[327858682,1716559939085,-159.534243,0.00031786,2]
[327858683,1716559939101,-172.73795,0.00031786,2]
[327858684,1716559939122,-18633.044255,0.00031786,2]
[327858685,1716559939141,-312.62541,0.00031786,2]
[327858686,1716559939153,-1729.156939,0.00031786,2]
[327858687,1716559939170,-3324.708917,0.00031786,2]
[327858688,1716559939185,-609.115965,0.00031786,2]
[327858689,1716559939203,-372.106852,0.00031786,2]
[327858690,1716559939218,-323.42202,0.00031786,2]
[327858691,1716559939233,-282.3086325,0.00031838,2]
[327858692,1716559939251,-3723.47110887,0.0003186,7]
[327858693,1716559939265,-1147.77650553,0.0003186,7]
[327858694,1716559939281,-246.94781801,0.0003186,7]
[327858695,1716559939297,-695.66031416,0.0003186,7]
[327858696,1716559939311,-387.0,0.0003191,2]
[327858697,1716559939326,-165.9806506,0.00031911,7]
[327858698,1716559939340,-500.0,0.00031938,10]
[327858699,1716559939355,-500.0,0.00031938,10]
[327858700,1716559939370,-1712.85010528,0.0003195,30]
[327858701,1716559939386,-150.0,0.0003195,7]
[327858702,1716559939401,-228.82665606,0.0003195,7]
[327858703,1716559939417,-150.0,0.0003195,7]
[327858704,1716559939432,-150.0,0.0003195,7]
[327858705,1716559939448,-152.0746258,0.00031958,7]
[327858706,1716559939462,-1100.0,0.00032,2]
[327858707,1716559939477,-9392.4247746,0.00032,4]
[327858708,1716559939492,-209.29248335,0.00032,7]
[327858709,1716559939508,-150.0,0.00032,7]
[327858710,1716559939523,-155.46791383,0.00032027,7]
[327858711,1716559939538,-157.83,0.00032035,2]
[327858712,1716559939553,-150.0,0.00032039,7]
[327858713,1716559939568,-2511.04,0.0003205,2]
[327858714,1716559939584,-2501.59,0.00032073,2]
[327858715,1716559939599,-25000.0,0.00032081,2]
[327858716,1716559939614,-151.02374938,0.00032085,7]
[327858717,1716559939629,-151.02374938,0.00032115,7]
[327858718,1716559939645,-150.0,0.00032128,7]
[327858719,1716559939659,-152.0746258,0.00032129,7]
[327858720,1716559939674,-2503.64,0.0003215,2]
[327858721,1716559939689,-280.75057216,0.00032155,7]
[327858722,1716559939706,-176.060258,0.00032169,2]
[327858723,1716559939720,-157.569703,0.00032169,2]
[327858724,1716559939735,-4762.072778,0.00032169,2]
[327858725,1716559939751,-159.534243,0.00032169,2]
[327858726,1716559939767,-172.73795,0.00032169,2]
[327858727,1716559939781,-18633.044255,0.00032169,2]
[327858728,1716559939795,-312.62541,0.00032169,2]
[327858729,1716559939809,-1729.156939,0.00032169,2]
[327858730,1716559939823,-3324.708917,0.00032169,2]
[327858731,1716559939837,-609.115965,0.00032169,2]
[327858732,1716559939852,-372.106852,0.00032169,2]
[327858733,1716559939866,-323.42202,0.00032169,2]
[327858734,1716559939879,-5000.0,0.00032184,2]
[327858735,1716559939894,-3723.47110887,0.00032214,7]
[327858736,1716559939909,-1147.77650553,0.00032214,7]
[327858737,1716559939924,-246.94781801,0.00032214,7]
[327858738,1716559939938,-695.66031416,0.00032214,7]
[327858739,1716559939954,-150.0,0.00032216,7]
[327858740,1716559939969,-156.98207687,0.00032219,30]
[327858741,1716559939984,-152.52,0.00032228,2]
[327858742,1716559939999,-150.0,0.00032246,7]
[327858743,1716559940014,-152.0746258,0.00032248,7]
[327858744,1716559940034,-209.29248335,0.00032268,7]
[327858745,1716559940048,-387.0,0.00032281,2]
[327858746,1716559940062,-894.78,0.000323,2]
[327858747,1716559940077,-150.0,0.00032305,7]
[327858748,1716559940092,-2506.18,0.00032375,2]
[327858749,1716559940109,-2502.45,0.0003238,2]
[327858750,1716559940124,-301.16,0.0003238,2]
[327858751,1716559940139,-169.00998554,0.00032381,7]
[327858752,1716559940153,-150.0,0.00032394,7]
[327858753,1716559940168,-1254.65,0.000324,2]
[327858754,1716559940182,-165.9806506,0.00032409,7]
[327858755,1716559940198,-157.54884506,0.00032419,7]
[327858756,1716559940213,-155.64583634,0.00032451,7]
[327858757,1716559940227,-150.0,0.00032483,7]
[327858758,1716559940242,-151.0,0.00032494,2]
[327858759,1716559940257,-250.49088,0.00032494,2]
[327858760,1716559940271,-152.0,0.000325,46]
[327858761,1716559940286,-150.0,0.000325,7]
[327858762,1716559940299,-846.42,0.0003252,2]
[327858763,1716559940314,-209.29248335,0.00032535,7]
[327858764,1716559940327,-150.0,0.00032542,7]
[327858765,1716559940342,-3723.47110887,0.00032568,7]
[327858766,1716559940356,-1147.77650553,0.00032568,7]
[327858767,1716559940371,-246.94781801,0.00032568,7]
[327858768,1716559940385,-695.66031416,0.00032568,7]
[327858769,1716559940399,-150.0,0.00032571,7]
[327858770,1716559940413,-2503.02,0.00032594,2]
[327858771,1716559940427,-399.026678,0.000326,5]
[327858772,1716559940441,-536.630205,0.00032603,14]
[327858773,1716559940458,-2503.64,0.00032647,2]
[327858774,1716559940472,-387.0,0.00032652,2]
[327858775,1716559940486,-150.0,0.0003266,7]
[327858776,1716559940500,-150.0,0.0003266,7]
[327858777,1716559940514,-5000.0,0.00032666,2]
[327858778,1716559940528,-12515.12,0.00032697,2]
[327858779,1716559940541,-151.02374938,0.0003272,7]
[327858780,1716559940556,-150.0,0.00032749,7]
[327858781,1716559940571,-2502.45,0.00032801,2]
[327858782,1716559940584,-150.0,0.00032838,7]
[327858783,1716559940598,-150.0,0.00032838,7]
[327858784,1716559940612,-5000.0,0.00032851,2]
[327858785,1716559940626,-5000.0,0.00032853,2]
[327858786,1716559940640,-150.0,0.00032856,120]
[327858787,1716559940654,-151.0,0.00032876,7]
[327858788,1716559940668,-166.23,0.00032877,2]
[327858789,1716559940683,-28006.91,0.00032877,2]
[327858790,1716559940699,-164.0,0.00032877,13]
[327858791,1716559940714,-2638.29,0.00032877,2]
[327858792,1716559940728,-152.0,0.0003288,5]
[327858793,1716559940742,-414.5,0.0003288,15]
[327858794,1716559940979,-5020.81023,0.00032885,30]
[327858795,1716559940991,-312.60095327,0.00032887,2]
[327858796,1716559941000,-407.0,0.0003289,15]
[327858797,1716559941010,-151.02374938,0.00032918,7]
[327858798,1716559941020,-2503.02,0.0003292,2]
[327858799,1716559941034,-3723.47110887,0.00032922,7]
[327858800,1716559941044,-1147.77650553,0.00032922,7]
[327858801,1716559941053,-246.94781801,0.00032922,7]
[327858802,1716559941063,-695.66031416,0.00032922,7]
[327858803,1716559941072,-2501.59,0.00032925,2]
[327858804,1716559941081,-150.0,0.00032926,7]
[327858805,1716559941091,-12515.12,0.00032941,2]
[327858806,1716559941103,-183.991154,0.00032941,7]
[327858807,1716559941112,-183.991154,0.00032941,7]
[327858808,1716559941121,-2506.18,0.00032944,2]
[327858809,1716559941130,-776.30145768,0.00032982,5]
[327858810,1716559941139,-776.30145764,0.00032982,5]
[327858811,1716559941148,-776.30145764,0.00032982,5]
[327858812,1716559941157,-776.30145764,0.00032982,5]
[327858813,1716559941166,-776.30145764,0.00032982,5]
[327858814,1716559941175,-776.30145764,0.00032982,5]
[327858815,1716559941185,-1165.2228344,0.00032984,2]
[327858816,1716559941196,-151.0,0.00032985,7]
[327858817,1716559941205,-151.0,0.00032985,7]
[327858818,1716559941214,-1079308.15324046,0.00032987,2]
[327858819,1716559941223,-3687.63597524,0.00032987,2]
[327858820,1716559941232,-151.0,0.00032987,7]
[327858821,1716559941241,-151.0,0.00032987,7]
[327858822,1716559941250,-151.0,0.00032987,7]
[327858823,1716559941259,-154.558475,0.00032987,7]
[327858824,1716559941268,-155.652906,0.00032987,7]
[327858825,1716559941278,-168.843148,0.00032987,7]
[327858826,1716559941287,-151.0,0.00032987,7]
[327858827,1716559941297,-151.0,0.00032987,7]
[327858828,1716559941306,-151.0,0.00032987,7]
[327858829,1716559941315,-151.0,0.00032987,7]
[327858830,1716559941324,-156.647059,0.00032987,7]
[327858831,1716559941334,-151.0,0.00032987,7]
[327858832,1716559941343,-343.122701,0.00032987,7]
[327858833,1716559941352,-343.122701,0.00032987,7]
[327858834,1716559941361,-214.449553,0.00032987,7]
[327858835,1716559941371,-214.449553,0.00032987,7]
[327858836,1716559941381,-151.0,0.00032987,7]
[327858837,1716559941390,-333.570508,0.00032987,7]
[327858838,1716559941399,-151.0,0.00032987,7]
[327858839,1716559941408,-333.570508,0.00032987,7]
[327858840,1716559941418,-257.054168,0.00032987,7]
[327858841,1716559941428,-151.0,0.00032987,7]
[327858842,1716559941437,-257.054168,0.00032987,7]
[327858843,1716559941450,-151.0,0.00032987,7]
[327858844,1716559941459,-157.659643,0.00032987,7]
[327858845,1716559941468,-151.0,0.00032987,7]
[327858846,1716559941477,-151.0,0.00032987,7]
[327858847,1716559941486,-151.0,0.00032987,7]
[327858848,1716559941495,-151.0,0.00032987,7]
[327858849,1716559941504,-151.0,0.00032987,7]
[327858850,1716559941513,-151.0,0.00032987,7]
[327858851,1716559941523,-151.0,0.00032987,7]
[327858852,1716559941532,-151.0,0.00032987,7]
[327858853,1716559941542,-173.224286,0.00032987,7]
[327858854,1716559941551,-173.224286,0.00032987,7]
[327858855,1716559941560,-151.0,0.00032987,7]
[327858856,1716559941571,-241.291335,0.00032987,7]
[327858857,1716559941581,-403.3146,0.00032987,7]
[327858858,1716559941590,-241.291335,0.00032987,7]
[327858859,1716559941599,-403.3146,0.00032987,7]
[327858860,1716559941609,-151.0,0.00032987,7]
[327858861,1716559941619,-151.0,0.00032987,7]
[327858862,1716559941628,-151.0,0.00032987,7]
[327858863,1716559941638,-162.508123,0.00032987,7]
[327858864,1716559941648,-151.0,0.00032987,7]
[327858865,1716559941658,-151.0,0.00032987,7]
[327858866,1716559941667,-151.0,0.00032987,7]
[327858867,1716559941676,-151.0,0.00032987,7]
[327858868,1716559941686,-151.0,0.00032987,7]
[327858869,1716559941699,-151.0,0.00032987,7]
[327858870,1716559941710,-151.0,0.00032987,7]
[327858871,1716559941723,-163.667635,0.00032987,7]
[327858872,1716559941733,-151.0,0.00032987,7]
[327858873,1716559941742,-173.327064,0.00032987,7]
[327858874,1716559941752,-151.0,0.00032987,7]
[327858875,1716559941761,-163.667635,0.00032987,7]
[327858876,1716559941771,-173.327064,0.00032987,7]
[327858877,1716559941781,-151.0,0.00032987,7]
[327858878,1716559941791,-665.597493,0.00032987,7]
[327858879,1716559941801,-665.597493,0.00032987,7]
[327858880,1716559941810,-218.004388,0.00032987,7]
[327858881,1716559941820,-151.0,0.00032987,7]
[327858882,1716559941830,-218.004388,0.00032987,7]
[327858883,1716559941839,-485.442264,0.00032987,7]
[327858884,1716559941849,-151.0,0.00032987,7]
[327858885,1716559941859,-220.735345,0.00032987,7]
[327858886,1716559941868,-485.442264,0.00032987,7]
[327858887,1716559941878,-657.313467,0.00032987,7]
[327858888,1716559941887,-151.0,0.00032987,7]
[327858889,1716559941897,-220.735345,0.00032987,7]
[327858890,1716559941906,-307.161433,0.00032987,7]
[327858891,1716559941916,-657.313467,0.00032987,7]
[327858892,1716559941925,-307.161433,0.00032987,7]
[327858893,1716559941935,-151.0,0.00032987,7]
[327858894,1716559941944,-151.0,0.00032987,7]
[327858895,1716559941960,-247.612435,0.00032987,7]
[327858896,1716559941969,-512.870799,0.00032987,7]
[327858897,1716559941978,-247.612435,0.00032987,7]
[327858898,1716559941988,-512.870799,0.00032987,7]
[327858899,1716559941997,-225.638764,0.00032987,7]
[327858900,1716559942006,-225.638764,0.00032987,7]
[327858901,1716559942016,-173.296148,0.00032987,7]
[327858902,1716559942030,-298.415414,0.00032987,7]
[327858903,1716559942039,-298.415414,0.00032987,7]
[327858904,1716559942048,-151.0,0.00032987,7]
[327858905,1716559942058,-151.0,0.00032987,7]
[327858906,1716559942070,-151.0,0.00032987,7]
[327858907,1716559942080,-151.0,0.00032987,7]
[327858908,1716559942090,-151.0,0.00032987,7]
[327858909,1716559942100,-151.0,0.00032987,7]
[327858910,1716559942110,-151.0,0.00032987,7]
[327858911,1716559942121,-151.0,0.00032987,7]
[327858912,1716559942130,-151.0,0.00032987,7]
[327858913,1716559942139,-157.732301,0.00032987,7]
[327858914,1716559942149,-151.0,0.00032987,7]
[327858915,1716559942158,-151.0,0.00032987,7]
[327858916,1716559942167,-151.0,0.00032987,7]
[327858917,1716559942177,-151.0,0.00032987,7]
[327858918,1716559942186,-151.0,0.00032987,7]
[327858919,1716559942197,-151.0,0.00032987,7]
[327858920,1716559942207,-151.0,0.00032987,7]
[327858921,1716559942216,-151.0,0.00032987,7]
[327858922,1716559942226,-151.0,0.00032987,7]
[327858923,1716559942236,-151.0,0.00032987,7]
[327858924,1716559942246,-4327.465765,0.00032987,7]
[327858925,1716559942255,-5000.0,0.00032988,2]
[327858926,1716559942264,-155.0,0.00033,4]
[327858927,1716559942274,-1000.24311783,0.00033,20]
[327858928,1716559942284,-2208.3973797,0.00033,30]
[327858929,1716559942293,-400.0,0.00033,15]
[327858930,1716559942303,-2000.0,0.00033,60]
[327858931,1716559942312,-10042.50825834,0.00033,4]
[327858932,1716559942321,-1350.0,0.00033,2]
[327858933,1716559942331,-734.106994,0.00033,2]
[327858934,1716559942340,-150.0,0.00033,7]
[327858935,1716559942350,-150.0,0.00033015,7]
[327858936,1716559942359,-387.0,0.00033023,2]
[327858937,1716559942369,-157.46032733,0.00033026,7]
[327858938,1716559942378,-500.0,0.00033034,10]
[327858939,1716559942388,-500.0,0.00033034,10]
[327858940,1716559942397,-155.71753773,0.00033034,7]
[327858941,1716559942407,-154.47161739,0.00033039,7]
[327858942,1716559942416,-302.0,0.0003304,4]
[327858943,1716559942426,-150.0,0.00033104,7]
[327858944,1716559942435,-209.29248335,0.00033121,7]
[327858945,1716559942446,-209.29248335,0.00033127,7]
[327858946,1716559942455,-150.0,0.00033133,7]
[327858947,1716559942465,-402.99,0.00033151,120]
[327858948,1716559942475,-285.36,0.00033151,120]
[327858949,1716559942485,-152.98488687,0.00033158,7]
[327858950,1716559942494,-150.0,0.00033193,7]
[327858951,1716559942503,-150.0,0.000332,120]
[327858952,1716559942513,-152.98488687,0.00033246,7]
[327858953,1716559942523,-3723.47110887,0.00033276,7]
[327858954,1716559942532,-1147.77650553,0.00033276,7]
[327858955,1716559942542,-246.94781801,0.00033276,7]
[327858956,1716559942552,-695.66031416,0.00033276,7]
[327858957,1716559942563,-150.0,0.00033281,7]
[327858958,1716559942572,-165.9806508,0.00033292,7]
[327858959,1716559942582,-1153.85974688,0.00033355,5]
[327858960,1716559942591,-150.0,0.0003337,7]
[327858961,1716559942601,-150.0,0.0003337,7]
[327858962,1716559942610,-387.0,0.00033395,2]
[327858963,1716559942619,-272.86,0.00033396,2]
[327858964,1716559942629,-408.62,0.00033396,2]
[327858965,1716559942638,-151.99947568,0.00033407,7]
[327858966,1716559942648,-155.71753773,0.00033407,7]
[327858967,1716559942658,-536.630205,0.00033425,14]
[327858968,1716559942667,-150.0,0.00033429,7]
[327858969,1716559942677,-150.0,0.00033459,7]
[327858970,1716559942686,-776.30145764,0.00033471,5]
[327858971,1716559942697,-342.3120588,0.00033477,2]
[327858972,1716559942706,-151.02374938,0.00033483,7]
[327858973,1716559942716,-155.71753773,0.00033499,7]
[327858974,1716559942725,-153.11,0.000335,2]
[327858975,1716559942735,-153.11,0.000335,2]
[327858976,1716559942744,-153.11,0.000335,2]
[327858977,1716559942754,-153.11,0.000335,2]
[327858978,1716559942763,-153.11,0.000335,2]